[Event "*** SCC Grand Prix: Titled Tuesday Blitz"]
[Site "Chess.com"]
[Date "2020.07.21"]
[Round "7"]
[White "ajian"]
[Black "Nayemhaque22"]
[Result "1-0"]
[WhiteElo "2428"]
[BlackElo "2204"]
[TimeControl "180+1"]
[EndTime "11:18:23 PDT"]
[Termination "ajian won by resignation"]

1. Nf3 {[%clk 0:02:35.3]} 1... d5 {[%clk 0:02:53.9]} 2. b3 {[%clk 0:02:35.4]}
2... Bg4 {[%clk 0:02:51.5]} 3. Bb2 {[%clk 0:02:34.6]} 3... Bxf3 {[%clk
0:02:51.2]} 4. gxf3 {[%clk 0:02:34.2]} 4... Nd7 {[%clk 0:02:51.5]} 5. d4 {[%clk
0:02:26]} 5... Ngf6 {[%clk 0:02:51.1]} 6. e3 {[%clk 0:02:25.6]} 6... e6 {[%clk
0:02:50.7]} 7. c4 {[%clk 0:02:25.7]} 7... c6 {[%clk 0:02:49.9]} 8. Bg2 {[%clk
0:02:18.8]} 8... g6 {[%clk 0:02:48.8]} 9. Nc3 {[%clk 0:02:12.5]} 9... Bg7 {[%clk
0:02:48.4]} 10. Qe2 {[%clk 0:02:12.5]} 10... O-O {[%clk 0:02:47.7]} 11. O-O
{[%clk 0:02:12.2]} 11... e5 {[%clk 0:02:46.6]} 12. dxe5 {[%clk 0:01:54.7]} 12...
Nxe5 {[%clk 0:02:43.3]} 13. cxd5 {[%clk 0:01:45.6]} 13... cxd5 {[%clk
0:02:41.5]} 14. Rfd1 {[%clk 0:01:39.3]} 14... Qa5 {[%clk 0:02:35.7]} 15. f4
{[%clk 0:01:32.1]} 15... Nc6 {[%clk 0:02:32.7]} 16. Nxd5 {[%clk 0:01:31.6]}
16... Nxd5 {[%clk 0:02:30.8]} 17. Rxd5 {[%clk 0:01:31.7]} 17... Qc7 {[%clk
0:02:22]} 18. Bxg7 {[%clk 0:01:30.2]} 18... Kxg7 {[%clk 0:02:21.9]} 19. Rad1
{[%clk 0:01:20.9]} 19... Rad8 {[%clk 0:02:21.4]} 20. Qc2 {[%clk 0:01:06.6]}
20... Rxd5 {[%clk 0:02:16.9]} 21. Rxd5 {[%clk 0:01:05.4]} 21... Qe7 {[%clk
0:02:00.4]} 22. h3 {[%clk 0:00:57.5]} 22... Rd8 {[%clk 0:01:49.8]} 23. Qc3+
{[%clk 0:00:55.6]} 23... Kg8 {[%clk 0:01:45.6]} 24. Rxd8+ {[%clk 0:00:52.2]}
24... Nxd8 {[%clk 0:01:44.6]} 25. Qc8 {[%clk 0:00:50.4]} 25... Kg7 {[%clk
0:01:41.2]} 26. Kh2 {[%clk 0:00:44.9]} 26... a6 {[%clk 0:01:40.7]} 27. Qb8
{[%clk 0:00:33.2]} 27... f6 {[%clk 0:01:35.6]} 28. Qc8 {[%clk 0:00:30.6]} 28...
h5 {[%clk 0:01:34.4]} 29. Bd5 {[%clk 0:00:21.4]} 29... Kh6 {[%clk 0:01:27.5]}
30. Bf3 {[%clk 0:00:18.6]} 30... g5 {[%clk 0:01:25.8]} 31. fxg5+ {[%clk
0:00:18.1]} 31... fxg5 {[%clk 0:01:25.1]} 32. Qf5 {[%clk 0:00:17.9]} 32... Nf7
{[%clk 0:01:17.9]} 33. Be4 {[%clk 0:00:16.3]} 33... Ne5 {[%clk 0:01:14.1]} 34.
f4 {[%clk 0:00:12.2]} 34... gxf4 {[%clk 0:01:07.1]} 35. exf4 {[%clk 0:00:12.5]}
35... Nf3+ {[%clk 0:00:16.6]} 36. Bxf3 {[%clk 0:00:12.1]} 36... Qe3 {[%clk
0:00:16.6]} 37. Qxh5+ {[%clk 0:00:09.4]} 37... Kg7 {[%clk 0:00:16.6]} 38. Qg5+
{[%clk 0:00:09.9]} 38... Kf8 {[%clk 0:00:14.8]} 39. Qf6+ {[%clk 0:00:09.8]}
39... Ke8 {[%clk 0:00:14.8]} 40. Qe5+ {[%clk 0:00:08.3]} 40... Qxe5 {[%clk
0:00:14.3]} 41. fxe5 {[%clk 0:00:09.2]} 41... Ke7 {[%clk 0:00:15]} 42. Bxb7
{[%clk 0:00:09.2]} 42... Ke6 {[%clk 0:00:14.6]} 43. Bxa6 {[%clk 0:00:09.2]}
43... Kd5 {[%clk 0:00:15.2]} 44. Kg3 {[%clk 0:00:10.1]} 44... Kxe5 {[%clk
0:00:15.5]} 45. Bc4 {[%clk 0:00:10]} 45... Kf6 {[%clk 0:00:16.4]} 46. Kf4 {[%clk
0:00:10.3]} 46... Kg7 {[%clk 0:00:17.3]} 47. a4 {[%clk 0:00:11.1]} 47... Kh6
{[%clk 0:00:18.2]} 48. a5 {[%clk 0:00:12]} 48... Kh5 {[%clk 0:00:18.2]} 49. b4
{[%clk 0:00:12.9]} 49... Kh4 {[%clk 0:00:18.9]} 50. b5 {[%clk 0:00:13.2]} 1-0

[Event "*** SCC Grand Prix: Titled Tuesday Blitz"]
[Site "Chess.com"]
[Date "2020.07.21"]
[Round "7"]
[White "GadimbayliA"]
[Black "MiroVlasenko"]
[Result "1-0"]
[WhiteElo "2872"]
[BlackElo "2740"]
[TimeControl "180+1"]
[EndTime "11:18:25 PDT"]
[Termination "GadimbayliA won by resignation"]

1. e4 {[%clk 0:03:00.9]} 1... Nc6 {[%clk 0:03:00.5]} 2. Nf3 {[%clk 0:02:59]}
2... d6 {[%clk 0:03:00.7]} 3. d4 {[%clk 0:02:58.9]} 3... Nf6 {[%clk 0:03:01.3]}
4. Nc3 {[%clk 0:02:57.9]} 4... g6 {[%clk 0:03:01.6]} 5. Be2 {[%clk 0:02:57.2]}
5... Bg7 {[%clk 0:03:01.8]} 6. O-O {[%clk 0:02:58.1]} 6... O-O {[%clk
0:03:01.6]} 7. d5 {[%clk 0:02:57.1]} 7... Nb8 {[%clk 0:03:01.6]} 8. Be3 {[%clk
0:02:56.4]} 8... Bg4 {[%clk 0:03:00.9]} 9. a4 {[%clk 0:02:56.2]} 9... c6 {[%clk
0:02:59.8]} 10. h3 {[%clk 0:02:54.6]} 10... Bxf3 {[%clk 0:02:59.5]} 11. Bxf3
{[%clk 0:02:55.5]} 11... Nbd7 {[%clk 0:02:59.6]} 12. Be2 {[%clk 0:02:53.5]}
12... Qc7 {[%clk 0:02:45.7]} 13. Qd2 {[%clk 0:02:49.4]} 13... a6 {[%clk
0:02:25.8]} 14. a5 {[%clk 0:02:47.7]} 14... cxd5 {[%clk 0:02:22.7]} 15. exd5
{[%clk 0:02:43.2]} 15... Ne5 {[%clk 0:02:21.4]} 16. Bb6 {[%clk 0:02:39.5]} 16...
Nc4 {[%clk 0:02:12.2]} 17. Bxc7 {[%clk 0:02:32.1]} 17... Nxd2 {[%clk 0:02:11.5]}
18. Rfd1 {[%clk 0:02:33]} 18... Nfe4 {[%clk 0:01:56.3]} 19. Nxe4 {[%clk
0:02:21.5]} 19... Nxe4 {[%clk 0:01:55.7]} 20. c3 {[%clk 0:02:21.4]} 20... Nc5
{[%clk 0:01:49.3]} 21. Bb6 {[%clk 0:02:19.2]} 21... Rac8 {[%clk 0:01:37.8]} 22.
Bg4 {[%clk 0:02:18.1]} 22... f5 {[%clk 0:01:37.2]} 23. Bf3 {[%clk 0:02:15.5]}
23... Nd7 {[%clk 0:01:35.8]} 24. Be3 {[%clk 0:02:12.6]} 24... f4 {[%clk
0:01:35.7]} 25. Bd2 {[%clk 0:02:07.9]} 25... Ne5 {[%clk 0:01:35.1]} 26. Be4
{[%clk 0:02:03.3]} 26... g5 {[%clk 0:01:22.5]} 27. Ra4 {[%clk 0:01:58.1]} 27...
Nc4 {[%clk 0:01:16.6]} 28. Bc1 {[%clk 0:01:56.8]} 28... Rc7 {[%clk 0:01:14.4]}
29. b3 {[%clk 0:01:44.6]} 29... Ne5 {[%clk 0:01:10.6]} 30. c4 {[%clk 0:01:44.8]}
30... Nd7 {[%clk 0:01:08.1]} 31. Bc2 {[%clk 0:01:35.2]} 31... Bc3 {[%clk
0:01:02.3]} 32. Rd3 {[%clk 0:01:29.9]} 32... Be5 {[%clk 0:00:57.6]} 33. Ra2
{[%clk 0:01:25]} 33... Rb8 {[%clk 0:00:54.7]} 34. Rd1 {[%clk 0:01:18.9]} 34...
Kg7 {[%clk 0:00:51.4]} 35. Ba3 {[%clk 0:01:10.9]} 35... h6 {[%clk 0:00:45.6]}
36. Re1 {[%clk 0:00:57]} 36... Kf6 {[%clk 0:00:44]} 37. Kf1 {[%clk 0:00:53.8]}
37... Nc5 {[%clk 0:00:40.1]} 38. Ke2 {[%clk 0:00:47.9]} 38... h5 {[%clk
0:00:32.8]} 39. Kf3 {[%clk 0:00:45.6]} 39... Rg8 {[%clk 0:00:32.1]} 40. Ke2
{[%clk 0:00:42.5]} 40... e6 {[%clk 0:00:25.2]} 41. Rd1 {[%clk 0:00:38.8]} 41...
exd5 {[%clk 0:00:19.9]} 42. Rxd5 {[%clk 0:00:39.7]} 42... Ne6 {[%clk 0:00:20.3]}
43. Bxd6 {[%clk 0:00:37.1]} 43... Bxd6 {[%clk 0:00:18.9]} 44. Rxd6 {[%clk
0:00:38]} 44... Rd8 {[%clk 0:00:19.2]} 45. Rxd8 {[%clk 0:00:35]} 45... Nxd8
{[%clk 0:00:20.1]} 46. Kd3 {[%clk 0:00:33.9]} 46... Ne6 {[%clk 0:00:20.3]} 47.
Kc3 {[%clk 0:00:31.4]} 47... Rd7 {[%clk 0:00:19.9]} 48. Ra1 {[%clk 0:00:26.3]}
48... g4 {[%clk 0:00:20.1]} 49. hxg4 {[%clk 0:00:24.1]} 49... hxg4 {[%clk
0:00:20.4]} 50. Rh1 {[%clk 0:00:24.7]} 50... Nd4 {[%clk 0:00:20.6]} 51. Rh6+
{[%clk 0:00:18.5]} 51... Kg5 {[%clk 0:00:20.6]} 52. Rh7 {[%clk 0:00:11.9]} 52...
Ne2+ {[%clk 0:00:19]} 53. Kb4 {[%clk 0:00:09.8]} 53... Rxh7 {[%clk 0:00:18.5]}
54. Bxh7 {[%clk 0:00:10.7]} 54... f3 {[%clk 0:00:17.6]} 55. gxf3 {[%clk
0:00:09]} 55... gxf3 {[%clk 0:00:17.6]} 56. Be4 {[%clk 0:00:09.6]} 56... Kf4
{[%clk 0:00:17.9]} 57. Bxb7 {[%clk 0:00:09]} 57... Nc1 {[%clk 0:00:18.4]} 58.
Kc3 {[%clk 0:00:07.1]} 58... Na2+ {[%clk 0:00:18.7]} 59. Kb2 {[%clk 0:00:06.6]}
1-0

[Event "*** SCC Grand Prix: Titled Tuesday Blitz"]
[Site "Chess.com"]
[Date "2020.07.21"]
[Round "7"]
[White "DenLaz"]
[Black "BillieKimbah"]
[Result "0-1"]
[WhiteElo "2710"]
[BlackElo "2890"]
[TimeControl "180+1"]
[EndTime "11:18:26 PDT"]
[Termination "BillieKimbah won by checkmate"]

1. d4 {[%clk 0:02:58.3]} 1... d5 {[%clk 0:03:00.2]} 2. c4 {[%clk 0:02:58.2]}
2... e6 {[%clk 0:03:00.6]} 3. Nf3 {[%clk 0:02:58.3]} 3... c6 {[%clk 0:02:59.3]}
4. e3 {[%clk 0:02:53.7]} 4... Nd7 {[%clk 0:02:56.5]} 5. b3 {[%clk 0:02:48.7]}
5... Nh6 {[%clk 0:02:54.5]} 6. Bd3 {[%clk 0:02:45.4]} 6... f5 {[%clk 0:02:54.2]}
7. O-O {[%clk 0:02:45.8]} 7... Nf7 {[%clk 0:02:49.5]} 8. Qc2 {[%clk 0:02:39.2]}
8... Nf6 {[%clk 0:02:46.9]} 9. a4 {[%clk 0:02:25.2]} 9... a5 {[%clk 0:02:46.4]}
10. Ba3 {[%clk 0:02:23]} 10... Bxa3 {[%clk 0:02:46]} 11. Nxa3 {[%clk 0:02:23.9]}
11... O-O {[%clk 0:02:45.8]} 12. Qb2 {[%clk 0:02:16.3]} 12... Ne4 {[%clk
0:02:41.7]} 13. b4 {[%clk 0:01:57.5]} 13... axb4 {[%clk 0:02:41.7]} 14. Qxb4
{[%clk 0:01:58.4]} 14... g5 {[%clk 0:02:41]} 15. Nc2 {[%clk 0:01:50.9]} 15... g4
{[%clk 0:02:38]} 16. Nd2 {[%clk 0:01:49.8]} 16... Qa5 {[%clk 0:02:09.5]} 17.
Qxa5 {[%clk 0:01:48.3]} 17... Rxa5 {[%clk 0:02:10.4]} 18. Nb3 {[%clk 0:01:40.9]}
18... Ra7 {[%clk 0:02:10]} 19. Bxe4 {[%clk 0:01:37.6]} 19... dxe4 {[%clk
0:02:00.6]} 20. a5 {[%clk 0:01:33.2]} 20... e5 {[%clk 0:01:54.5]} 21. Nc5 {[%clk
0:01:27]} 21... exd4 {[%clk 0:01:50.7]} 22. Nxd4 {[%clk 0:01:26.1]} 22... Nd6
{[%clk 0:01:51.4]} 23. Rfc1 {[%clk 0:01:20.9]} 23... Kf7 {[%clk 0:01:42.8]} 24.
Kf1 {[%clk 0:01:12.6]} 24... Re8 {[%clk 0:01:40]} 25. Ke2 {[%clk 0:01:03]} 25...
Re5 {[%clk 0:01:36.6]} 26. Ncb3 {[%clk 0:01:03.2]} 26... Ra6 {[%clk 0:01:24.3]}
27. c5 {[%clk 0:00:57.4]} 27... Ne8 {[%clk 0:01:15.5]} 28. Nd2 {[%clk
0:00:55.6]} 28... Kf6 {[%clk 0:00:56.7]} 29. N4b3 {[%clk 0:00:36.6]} 29... Be6
{[%clk 0:00:53.7]} 30. Nd4 {[%clk 0:00:36.8]} 30... Bf7 {[%clk 0:00:45.5]} 31.
Rcb1 {[%clk 0:00:26.2]} 31... Ra7 {[%clk 0:00:18.7]} 32. a6 {[%clk 0:00:18.8]}
32... Rxa6 {[%clk 0:00:18.8]} 33. Rxa6 {[%clk 0:00:17.1]} 33... bxa6 {[%clk
0:00:19.7]} 34. Rb6 {[%clk 0:00:12]} 34... Rxc5 {[%clk 0:00:19.7]} 35. Nxc6
{[%clk 0:00:12.4]} 35... Kg5 {[%clk 0:00:11.1]} 36. Nd4 {[%clk 0:00:08.7]} 36...
a5 {[%clk 0:00:08.1]} 37. f4+ {[%clk 0:00:08.8]} 37... gxf3+ {[%clk 0:00:07.5]}
38. gxf3 {[%clk 0:00:09.7]} 38... exf3+ {[%clk 0:00:07.4]} 39. N2xf3+ {[%clk
0:00:09]} 39... Kh5 {[%clk 0:00:07.9]} 40. Kf2 {[%clk 0:00:08]} 40... a4 {[%clk
0:00:06]} 41. Ra6 {[%clk 0:00:07.8]} 41... Ng7 {[%clk 0:00:01.9]} 42. Ne2 {[%clk
0:00:07.8]} 42... Ne6 {[%clk 0:00:02.1]} 43. Ng3+ {[%clk 0:00:06.7]} 43... Kg6
{[%clk 0:00:02.6]} 44. Rxa4 {[%clk 0:00:05.4]} 44... Rc2+ {[%clk 0:00:02.7]} 45.
Ne2 {[%clk 0:00:05.2]} 45... Nc5 {[%clk 0:00:03.6]} 46. Rd4 {[%clk 0:00:03.4]}
46... Ne4+ {[%clk 0:00:03.8]} 47. Ke1 {[%clk 0:00:03.3]} 47... Bc4 {[%clk
0:00:04.2]} 48. Nf4+ {[%clk 0:00:02.6]} 48... Kg7 {[%clk 0:00:04.3]} 49. Rd7+
{[%clk 0:00:02.4]} 49... Kf6 {[%clk 0:00:04.8]} 50. Rd1 {[%clk 0:00:01.8]} 50...
Rf2 {[%clk 0:00:04.3]} 51. Nd2 {[%clk 0:00:01.7]} 51... Nxd2 {[%clk 0:00:03.8]}
52. Rxd2 {[%clk 0:00:02.6]} 52... Rf1# {[%clk 0:00:04]} 0-1

[Event "*** SCC Grand Prix: Titled Tuesday Blitz"]
[Site "Chess.com"]
[Date "2020.07.21"]
[Round "7"]
[White "FMOlexandrProhorov"]
[Black "maiconramazzotte99"]
[Result "0-1"]
[WhiteElo "2114"]
[BlackElo "1772"]
[TimeControl "180+1"]
[EndTime "11:18:27 PDT"]
[Termination "maiconramazzotte99 won on time"]

1. e4 {[%clk 0:03:00.9]} 1... c5 {[%clk 0:02:59.2]} 2. c3 {[%clk 0:02:57.7]}
2... d6 {[%clk 0:02:57.9]} 3. d4 {[%clk 0:02:57.4]} 3... cxd4 {[%clk 0:02:58.8]}
4. cxd4 {[%clk 0:02:57.6]} 4... d5 {[%clk 0:02:59.7]} 5. Nc3 {[%clk 0:02:58.3]}
5... dxe4 {[%clk 0:02:58.3]} 6. Bc4 {[%clk 0:02:54.4]} 6... Nf6 {[%clk
0:02:57.5]} 7. Qb3 {[%clk 0:02:48.2]} 7... e6 {[%clk 0:02:54.6]} 8. Nge2 {[%clk
0:02:48.4]} 8... Nc6 {[%clk 0:02:53.2]} 9. Bg5 {[%clk 0:02:43.4]} 9... Nxd4
{[%clk 0:02:51.7]} 10. Nxd4 {[%clk 0:02:38.9]} 10... Qxd4 {[%clk 0:02:50.6]} 11.
Rd1 {[%clk 0:02:33.7]} 11... Qe5 {[%clk 0:02:47.8]} 12. Bb5+ {[%clk 0:02:13.2]}
12... Nd7 {[%clk 0:02:39]} 13. Be3 {[%clk 0:02:00.9]} 13... a6 {[%clk
0:02:34.7]} 14. Qa4 {[%clk 0:01:49.2]} 14... Qc7 {[%clk 0:02:27.1]} 15. Bb6
{[%clk 0:01:41.4]} 15... axb5 {[%clk 0:02:05.6]} 16. Qxa8 {[%clk 0:01:28.8]}
16... Nxb6 {[%clk 0:02:02]} 17. Qa5 {[%clk 0:01:18.8]} 17... Bd7 {[%clk
0:01:45.7]} 18. O-O {[%clk 0:01:15]} 18... Bd6 {[%clk 0:01:39.5]} 19. Nxb5
{[%clk 0:01:13.5]} 19... Bxb5 {[%clk 0:01:36.5]} 20. Qxb5+ {[%clk 0:01:13.9]}
20... Nd7 {[%clk 0:01:34]} 21. Rc1 {[%clk 0:01:05.7]} 21... Qb8 {[%clk
0:01:31.1]} 22. Rfd1 {[%clk 0:01:03.7]} 22... Ke7 {[%clk 0:01:14.9]} 23. Qg5+
{[%clk 0:00:57.8]} 23... Nf6 {[%clk 0:01:12.4]} 24. Qxg7 {[%clk 0:00:50.6]}
24... Rg8 {[%clk 0:01:10.7]} 25. Qh6 {[%clk 0:00:51.2]} 25... Bf4 {[%clk
0:01:05.1]} 26. Qh4 {[%clk 0:00:37.2]} 26... Bxc1 {[%clk 0:00:48.1]} 27. Rxc1
{[%clk 0:00:38.1]} 27... Qe5 {[%clk 0:00:46]} 28. Qh3 {[%clk 0:00:32.9]} 28...
Qg5 {[%clk 0:00:44]} 29. Qa3+ {[%clk 0:00:32]} 29... Kd7 {[%clk 0:00:22.6]} 30.
Qa4+ {[%clk 0:00:27.3]} 30... Ke7 {[%clk 0:00:17.8]} 31. Qb4+ {[%clk 0:00:26.8]}
31... Ke8 {[%clk 0:00:10.6]} 32. g3 {[%clk 0:00:21.2]} 32... Qxc1+ {[%clk
0:00:06.9]} 33. Kg2 {[%clk 0:00:20]} 33... Qc6 {[%clk 0:00:07.8]} 34. Qd4 {[%clk
0:00:16.8]} 34... e3+ {[%clk 0:00:08.1]} 35. Kf1 {[%clk 0:00:15.3]} 35... exf2
{[%clk 0:00:06.7]} 36. Kxf2 {[%clk 0:00:15.6]} 36... Ne4+ {[%clk 0:00:06.4]} 37.
Ke3 {[%clk 0:00:15.6]} 37... Rg5 {[%clk 0:00:06]} 38. Qh8+ {[%clk 0:00:10.2]}
38... Ke7 {[%clk 0:00:05.3]} 39. Qb8 {[%clk 0:00:10]} 39... Re5 {[%clk
0:00:04.7]} 40. Qxe5 {[%clk 0:00:07.1]} 40... Nd6 {[%clk 0:00:05]} 41. Qg5+
{[%clk 0:00:06.5]} 41... f6 {[%clk 0:00:05.6]} 42. Qg7+ {[%clk 0:00:06.6]} 42...
Nf7 {[%clk 0:00:06.5]} 43. Qg8 {[%clk 0:00:05.9]} 43... Qb6+ {[%clk 0:00:07.4]}
44. Kf3 {[%clk 0:00:06.1]} 44... Qxb2 {[%clk 0:00:07.6]} 45. Qc8 {[%clk
0:00:05.8]} 45... Qe5 {[%clk 0:00:08.5]} 46. Kg2 {[%clk 0:00:05.4]} 46... Qe4+
{[%clk 0:00:08.4]} 47. Kh3 {[%clk 0:00:05.3]} 47... f5 {[%clk 0:00:09.2]} 48.
Qc7+ {[%clk 0:00:05]} 48... Kf6 {[%clk 0:00:10.1]} 49. Qc3+ {[%clk 0:00:04.9]}
49... e5 {[%clk 0:00:09.9]} 50. Qc1 {[%clk 0:00:04.3]} 50... Qg4+ {[%clk
0:00:10.1]} 51. Kg2 {[%clk 0:00:04.1]} 51... Ng5 {[%clk 0:00:11]} 52. Qc7 {[%clk
0:00:03.8]} 52... Ne6 {[%clk 0:00:10.5]} 53. Qd7 {[%clk 0:00:03.3]} 53... Qe4+
{[%clk 0:00:11.4]} 54. Kh3 {[%clk 0:00:01.7]} 54... h5 {[%clk 0:00:12.3]} 0-1

[Event "*** SCC Grand Prix: Titled Tuesday Blitz"]
[Site "Chess.com"]
[Date "2020.07.21"]
[Round "7"]
[White "Dedic8"]
[Black "GM_dmitrij"]
[Result "1-0"]
[WhiteElo "2785"]
[BlackElo "2926"]
[TimeControl "180+1"]
[EndTime "11:18:29 PDT"]
[Termination "Dedic8 won on time"]

1. e4 {[%clk 0:03:00.9]} 1... c5 {[%clk 0:02:59.1]} 2. Nf3 {[%clk 0:03:01.3]}
2... d6 {[%clk 0:02:58.8]} 3. d4 {[%clk 0:03:01.8]} 3... cxd4 {[%clk 0:02:59.7]}
4. Nxd4 {[%clk 0:03:02.7]} 4... Nf6 {[%clk 0:03:00.2]} 5. Nc3 {[%clk 0:03:03.4]}
5... Nc6 {[%clk 0:03:00.6]} 6. Bg5 {[%clk 0:03:02.8]} 6... e6 {[%clk 0:03:00.9]}
7. Qd3 {[%clk 0:03:03.3]} 7... Bd7 {[%clk 0:02:59.5]} 8. Ndb5 {[%clk 0:02:52.7]}
8... Nb4 {[%clk 0:02:59]} 9. Qd1 {[%clk 0:02:52.8]} 9... Bxb5 {[%clk 0:02:57.2]}
10. Bxb5+ {[%clk 0:02:50.5]} 10... Nc6 {[%clk 0:02:57.4]} 11. O-O {[%clk
0:02:42.3]} 11... Be7 {[%clk 0:02:56.5]} 12. Qd2 {[%clk 0:02:41.3]} 12... O-O
{[%clk 0:02:48.9]} 13. Rad1 {[%clk 0:02:41.1]} 13... Rc8 {[%clk 0:02:45.1]} 14.
Bf4 {[%clk 0:02:23.1]} 14... Ne5 {[%clk 0:02:35.3]} 15. Rfe1 {[%clk 0:02:11.6]}
15... Qa5 {[%clk 0:02:26.9]} 16. Nd5 {[%clk 0:02:09.7]} 16... Qd8 {[%clk
0:02:12.9]} 17. Nxe7+ {[%clk 0:01:57.7]} 17... Qxe7 {[%clk 0:02:13.8]} 18. Qxd6
{[%clk 0:01:58.3]} 18... Qxd6 {[%clk 0:02:14.4]} 19. Rxd6 {[%clk 0:01:59.2]}
19... Ng6 {[%clk 0:02:14.8]} 20. Bd2 {[%clk 0:01:58.9]} 20... Rxc2 {[%clk
0:01:26.9]} 21. Bc3 {[%clk 0:01:59.1]} 21... Rc8 {[%clk 0:01:26.1]} 22. Ba4
{[%clk 0:01:30.5]} 22... R2xc3 {[%clk 0:01:15.2]} 23. bxc3 {[%clk 0:01:30.4]}
23... Kf8 {[%clk 0:01:16.1]} 24. e5 {[%clk 0:01:02.2]} 24... Ke7 {[%clk
0:00:57.6]} 25. Rd4 {[%clk 0:00:42.8]} 25... Nd5 {[%clk 0:00:52.3]} 26. c4
{[%clk 0:00:41]} 26... Nb6 {[%clk 0:00:52.5]} 27. Bb3 {[%clk 0:00:36.3]} 27...
Nf8 {[%clk 0:00:38]} 28. Red1 {[%clk 0:00:33.9]} 28... g5 {[%clk 0:00:20.5]} 29.
h4 {[%clk 0:00:34.1]} 29... gxh4 {[%clk 0:00:13.7]} 30. Rxh4 {[%clk 0:00:35]}
30... Ng6 {[%clk 0:00:14.2]} 31. Re4 {[%clk 0:00:24.9]} 31... Rc5 {[%clk
0:00:13.7]} 32. f4 {[%clk 0:00:22.9]} 32... h5 {[%clk 0:00:13.7]} 33. g3 {[%clk
0:00:22.4]} 33... Rc8 {[%clk 0:00:07.7]} 34. Kf2 {[%clk 0:00:21.6]} 34... Nd7
{[%clk 0:00:07.5]} 35. Red4 {[%clk 0:00:20.4]} 35... Nc5 {[%clk 0:00:07.7]} 36.
Bc2 {[%clk 0:00:21.1]} 36... Nf8 {[%clk 0:00:05.9]} 37. Rh1 {[%clk 0:00:21.2]}
37... Na6 {[%clk 0:00:03.2]} 38. Rxh5 {[%clk 0:00:20]} 38... b5 {[%clk
0:00:03.6]} 39. Bb3 {[%clk 0:00:19.4]} 39... b4 {[%clk 0:00:03.6]} 40. Rh1
{[%clk 0:00:18.8]} 40... Nc5 {[%clk 0:00:04.3]} 41. Rhd1 {[%clk 0:00:18.4]}
41... a5 {[%clk 0:00:04.9]} 42. Rd6 {[%clk 0:00:17.4]} 42... a4 {[%clk
0:00:05.4]} 43. Bc2 {[%clk 0:00:18]} 43... Nfd7 {[%clk 0:00:05]} 44. Ke3 {[%clk
0:00:16.3]} 44... b3 {[%clk 0:00:05.4]} 45. axb3 {[%clk 0:00:16.3]} 45... axb3
{[%clk 0:00:06.3]} 46. Be4 {[%clk 0:00:16.8]} 46... Rb8 {[%clk 0:00:06]} 47. Rb1
{[%clk 0:00:17.1]} 47... Rg8 {[%clk 0:00:05.6]} 48. Rg1 {[%clk 0:00:12.7]} 48...
Rb8 {[%clk 0:00:05]} 49. Bb1 {[%clk 0:00:12]} 49... b2 {[%clk 0:00:05.2]} 50. g4
{[%clk 0:00:11.1]} 50... Na4 {[%clk 0:00:04.4]} 51. Kd4 {[%clk 0:00:09.1]} 51...
Ndc5 {[%clk 0:00:03.4]} 52. f5 {[%clk 0:00:08.4]} 52... Nb3+ {[%clk 0:00:03.8]}
53. Ke3 {[%clk 0:00:07.3]} 53... Nbc5 {[%clk 0:00:02.5]} 54. f6+ {[%clk
0:00:07.6]} 54... Ke8 {[%clk 0:00:02.5]} 55. Rh1 {[%clk 0:00:07.1]} 1-0

[Event "*** SCC Grand Prix: Titled Tuesday Blitz"]
[Site "Chess.com"]
[Date "2020.07.21"]
[Round "7"]
[White "bratkoo"]
[Black "kobemagic"]
[Result "1-0"]
[WhiteElo "2475"]
[BlackElo "2324"]
[TimeControl "180+1"]
[EndTime "11:18:31 PDT"]
[Termination "bratkoo won on time"]

1. e4 {[%clk 0:03:00.9]} 1... Nf6 {[%clk 0:02:57.9]} 2. e5 {[%clk 0:02:58.6]}
2... Nd5 {[%clk 0:02:50.8]} 3. d4 {[%clk 0:02:58.9]} 3... d6 {[%clk 0:02:50.9]}
4. c4 {[%clk 0:02:59.1]} 4... Nb6 {[%clk 0:02:50.9]} 5. Nf3 {[%clk 0:02:59.4]}
5... Bg4 {[%clk 0:02:48.3]} 6. exd6 {[%clk 0:02:58.6]} 6... exd6 {[%clk
0:02:48.3]} 7. h3 {[%clk 0:02:58.9]} 7... Bh5 {[%clk 0:02:48.1]} 8. Nc3 {[%clk
0:02:52.8]} 8... Nc6 {[%clk 0:02:47.9]} 9. Be2 {[%clk 0:02:51.9]} 9... Be7
{[%clk 0:02:46.4]} 10. O-O {[%clk 0:02:51.8]} 10... O-O {[%clk 0:02:44.7]} 11.
d5 {[%clk 0:02:52]} 11... Bxf3 {[%clk 0:02:43.2]} 12. Bxf3 {[%clk 0:02:51.3]}
12... Ne5 {[%clk 0:02:43.7]} 13. b3 {[%clk 0:02:51.4]} 13... f5 {[%clk
0:02:40.6]} 14. Bb2 {[%clk 0:02:50.7]} 14... Bf6 {[%clk 0:02:40.2]} 15. Be2
{[%clk 0:02:50.6]} 15... Nbd7 {[%clk 0:02:29.8]} 16. f4 {[%clk 0:02:46.1]} 16...
Ng6 {[%clk 0:02:25.9]} 17. Qc2 {[%clk 0:02:46.2]} 17... a5 {[%clk 0:02:24.4]}
18. Nb5 {[%clk 0:02:44.5]} 18... Bxb2 {[%clk 0:02:22.5]} 19. Qxb2 {[%clk
0:02:44.6]} 19... Nc5 {[%clk 0:02:13.3]} 20. Rae1 {[%clk 0:02:38.3]} 20... Ne4
{[%clk 0:02:10.5]} 21. Bd3 {[%clk 0:02:34.2]} 21... Nc5 {[%clk 0:02:06.4]} 22.
Bc2 {[%clk 0:02:31.9]} 22... Rc8 {[%clk 0:01:46.5]} 23. Nd4 {[%clk 0:02:30.2]}
23... Qf6 {[%clk 0:01:36.4]} 24. Bxf5 {[%clk 0:02:29.4]} 24... Rce8 {[%clk
0:01:25]} 25. Qd2 {[%clk 0:02:28.5]} 25... Kh8 {[%clk 0:01:10.2]} 26. Bxg6
{[%clk 0:02:17.9]} 26... hxg6 {[%clk 0:00:55.2]} 27. Nf3 {[%clk 0:01:42.9]}
27... Rxe1 {[%clk 0:00:48.5]} 28. Rxe1 {[%clk 0:01:42.8]} 28... Kg8 {[%clk
0:00:41.6]} 29. g3 {[%clk 0:01:38.7]} 29... Qf5 {[%clk 0:00:37.5]} 30. Kg2
{[%clk 0:01:37.7]} 30... b6 {[%clk 0:00:33.5]} 31. Re7 {[%clk 0:01:36.8]} 31...
Rf7 {[%clk 0:00:27.8]} 32. Re8+ {[%clk 0:01:35.1]} 32... Rf8 {[%clk 0:00:26.5]}
33. Rxf8+ {[%clk 0:01:28.6]} 33... Kxf8 {[%clk 0:00:25.8]} 34. Qe2 {[%clk
0:01:25.6]} 34... Qb1 {[%clk 0:00:24.6]} 35. Ng5 {[%clk 0:01:21.9]} 35... Nd3
{[%clk 0:00:17.7]} 36. h4 {[%clk 0:01:13.6]} 36... Ne1+ {[%clk 0:00:15]} 37. Kh3
{[%clk 0:01:08.4]} 37... Nd3 {[%clk 0:00:12.7]} 38. Kg2 {[%clk 0:01:05.6]} 38...
Ne1+ {[%clk 0:00:12.5]} 39. Kh2 {[%clk 0:01:05.7]} 39... Nd3 {[%clk 0:00:13]}
40. Ne6+ {[%clk 0:00:54.5]} 40... Kg8 {[%clk 0:00:12.6]} 41. Nxc7 {[%clk
0:00:52.3]} 41... Kh7 {[%clk 0:00:09.6]} 42. Ne6 {[%clk 0:00:51.6]} 42... Nc5
{[%clk 0:00:08]} 43. Ng5+ {[%clk 0:00:51.6]} 43... Kh6 {[%clk 0:00:08.4]} 44.
Nf7+ {[%clk 0:00:47.3]} 44... Kh7 {[%clk 0:00:08]} 45. Qe8 {[%clk 0:00:40.5]}
45... Qc2+ {[%clk 0:00:06]} 46. Kh3 {[%clk 0:00:38.4]} 46... Qf5+ {[%clk
0:00:06.2]} 47. Kg2 {[%clk 0:00:38.2]} 47... Qc2+ {[%clk 0:00:06.5]} 48. Kf3
{[%clk 0:00:37.8]} 48... Qd3+ {[%clk 0:00:06.6]} 49. Qe3 {[%clk 0:00:36.6]}
49... Qf1+ {[%clk 0:00:06.4]} 50. Kg4 {[%clk 0:00:34.6]} 50... Qd1+ {[%clk
0:00:06.9]} 51. Qf3 {[%clk 0:00:31.1]} 51... Qb1 {[%clk 0:00:06]} 52. Ng5+
{[%clk 0:00:30.4]} 52... Kh6 {[%clk 0:00:05.6]} 53. Nf7+ {[%clk 0:00:27.2]}
53... Kh7 {[%clk 0:00:04.5]} 54. Nxd6 {[%clk 0:00:24.9]} 54... Nb7 {[%clk
0:00:03.6]} 55. Qe4 {[%clk 0:00:20.6]} 55... Qd1+ {[%clk 0:00:02.3]} 56. Kh3
{[%clk 0:00:18.4]} 56... Nxd6 {[%clk 0:00:01.9]} 57. Qg2 {[%clk 0:00:17.6]}
57... Qd2 {[%clk 0:00:01.7]} 58. Qxd2 {[%clk 0:00:17.4]} 58... Nf5 {[%clk
0:00:02.6]} 59. g4 {[%clk 0:00:17.4]} 1-0